[Event "Titled Tuesday Blitz April 26 Late 2022"]
[White "Szpar, Milosz"]
[Black "D`Arruda, Ricardo D."]
[WhiteFideId "1184989"]
[BlackFideId "100692"]
[WhiteElo "2447"]
[BlackElo "2375"]
[Result "1-0"]
[Round "01"]
[TimeControl "180+1"]
[Date "2022.04.26"]
[WhiteClock "0:00:27"]
[BlackClock "0:00:35"]

1. e4 {[%clk 0:03:00]}  c5 {[%clk 0:02:59]} 2. Nf3 {[%clk 0:02:57]}  Nc6 {[%clk 0:02:58]} 3. Bb5 {[%clk 0:02:56]}  e6 {[%clk 0:02:57]} 4. O-O {[%clk 0:02:52]}  Nge7 {[%clk 0:02:57]} 5. Re1 {[%clk 0:02:50]}  a6 {[%clk 0:02:57]} 6. Bf1 {[%clk 0:02:50]}  d6 {[%clk 0:02:53]} 7. c3 {[%clk 0:02:46]}  g6 {[%clk 0:02:48]} 8. d4 {[%clk 0:02:45]}  cxd4 {[%clk 0:02:47]} 9. cxd4 {[%clk 0:02:44]}  Bg7 {[%clk 0:02:48]} 10. Nc3 {[%clk 0:02:42]}  O-O {[%clk 0:02:47]} 11. h3 {[%clk 0:02:38]}  d5 {[%clk 0:02:44]} 12. e5 {[%clk 0:02:36]}  b5 {[%clk 0:02:44]} 13. b3 {[%clk 0:02:19]}  Bd7 {[%clk 0:02:43]} 14. Bb2 {[%clk 0:02:14]}  Rc8 {[%clk 0:02:42]} 15. Rc1 {[%clk 0:02:12]}  Qb6 {[%clk 0:02:40]} 16. Ne2 {[%clk 0:01:47]}  Bh6 {[%clk 0:02:36]} 17. Rc2 {[%clk 0:01:43]}  Nb4 {[%clk 0:02:28]} 18. Rxc8 {[%clk 0:01:40]}  Rxc8 {[%clk 0:02:29]} 19. Qb1 {[%clk 0:01:34]}  Qa5 {[%clk 0:01:47]} 20. Nc1 {[%clk 0:01:14]}  Bxc1 {[%clk 0:01:38]} 21. Rxc1 {[%clk 0:01:10]}  Qxa2 {[%clk 0:01:35]} 22. Qxa2 {[%clk 0:01:04]}  Nxa2 {[%clk 0:01:34]} 23. Ra1 {[%clk 0:01:04]}  Nb4 {[%clk 0:01:33]} 24. Ne1 {[%clk 0:01:01]}  Ra8 {[%clk 0:01:28]} 25. Bc3 {[%clk 0:00:51]}  Nbc6 {[%clk 0:01:26]} 26. Bxb5 {[%clk 0:00:47]}  Rb8 {[%clk 0:01:22]} 27. Bxa6 {[%clk 0:00:43]}  Rxb3 {[%clk 0:01:22]} 28. Rc1 {[%clk 0:00:42]}  Nf5 {[%clk 0:01:15]} 29. Nf3 {[%clk 0:00:42]}  h5 {[%clk 0:01:06]} 30. Be2 {[%clk 0:00:38]}  Kg7 {[%clk 0:01:00]} 31. Kf1 {[%clk 0:00:36]}  Rb7 {[%clk 0:00:59]} 32. g4 {[%clk 0:00:35]}  hxg4 {[%clk 0:00:58]} 33. hxg4 {[%clk 0:00:36]}  Nfe7 {[%clk 0:00:57]} 34. Bd3 {[%clk 0:00:35]}  Nd8 {[%clk 0:00:50]} 35. Ba5 {[%clk 0:00:30]}  Ndc6 {[%clk 0:00:49]} 36. Bd2 {[%clk 0:00:30]}  Nd8 {[%clk 0:00:49]} 37. Bg5 {[%clk 0:00:30]}  Kf8 {[%clk 0:00:45]} 38. Kg2 {[%clk 0:00:29]}  Bb5 {[%clk 0:00:40]} 39. Bxb5 {[%clk 0:00:29]}  Rxb5 {[%clk 0:00:39]} 40. Rh1 {[%clk 0:00:29]}  Ndc6 {[%clk 0:00:36]} 41. Rh8+ {[%clk 0:00:27]}  Kg7 {[%clk 0:00:35]} 42. Bf6# {[%clk 0:00:27]} 1-0


[Site "https://www.chess.com"]

[Event "Titled Tuesday Blitz April 26 Late 2022"]
[White "Vachier-Lagrave, Maxime"]
[Black "Manukyan, Artyom"]
[WhiteFideId "623539"]
[BlackFideId "13305786"]
[WhiteElo "2813"]
[BlackElo "2034"]
[Result "1-0"]
[Round "01"]
[TimeControl "180+1"]
[Date "2022.04.26"]
[WhiteClock "0:00:33"]
[BlackClock "0:00:07"]

1. Nf3 {[%clk 0:01:45]}  d5 {[%clk 0:02:58]} 2. b3 {[%clk 0:01:45]}  Nf6 {[%clk 0:02:57]} 3. Bb2 {[%clk 0:01:46]}  Bf5 {[%clk 0:02:55]} 4. g3 {[%clk 0:01:46]}  e6 {[%clk 0:02:55]} 5. Bg2 {[%clk 0:01:46]}  h6 {[%clk 0:02:56]} 6. O-O {[%clk 0:01:46]}  Be7 {[%clk 0:02:56]} 7. e3 {[%clk 0:01:47]}  O-O {[%clk 0:02:57]} 8. d3 {[%clk 0:01:47]}  Bh7 {[%clk 0:02:56]} 9. Qe2 {[%clk 0:01:47]}  a5 {[%clk 0:02:57]} 10. a3 {[%clk 0:01:47]}  Nbd7 {[%clk 0:02:55]} 11. Rd1 {[%clk 0:01:47]}  c5 {[%clk 0:02:55]} 12. c4 {[%clk 0:01:47]}  a4 {[%clk 0:02:54]} 13. bxa4 {[%clk 0:01:47]}  Rxa4 {[%clk 0:02:53]} 14. Nc3 {[%clk 0:01:47]}  Ra8 {[%clk 0:02:53]} 15. a4 {[%clk 0:01:43]}  Qc8 {[%clk 0:02:37]} 16. Nb5 {[%clk 0:01:42]}  Rd8 {[%clk 0:02:32]} 17. Ne5 {[%clk 0:01:38]}  Nxe5 {[%clk 0:02:28]} 18. Bxe5 {[%clk 0:01:39]}  Qc6 {[%clk 0:02:16]} 19. Qb2 {[%clk 0:01:37]}  Ne8 {[%clk 0:02:09]} 20. a5 {[%clk 0:01:34]}  Bf6 {[%clk 0:02:06]} 21. cxd5 {[%clk 0:01:29]}  exd5 {[%clk 0:01:57]} 22. Bxf6 {[%clk 0:01:27]}  Nxf6 {[%clk 0:01:58]} 23. Nc3 {[%clk 0:01:13]}  Qc7 {[%clk 0:01:31]} 24. Qb5 {[%clk 0:01:06]}  Bf5 {[%clk 0:01:25]} 25. Rdc1 {[%clk 0:01:02]}  Bd7 {[%clk 0:01:21]} 26. Qb6 {[%clk 0:01:02]}  Qxb6 {[%clk 0:01:18]} 27. axb6 {[%clk 0:01:03]}  Rxa1 {[%clk 0:01:19]} 28. Rxa1 {[%clk 0:01:03]}  Bc6 {[%clk 0:01:19]} 29. Ra5 {[%clk 0:01:04]}  Nd7 {[%clk 0:01:11]} 30. Bxd5 {[%clk 0:01:03]}  Nxb6 {[%clk 0:01:09]} 31. Bxc6 {[%clk 0:01:03]}  bxc6 {[%clk 0:01:09]} 32. Rxc5 {[%clk 0:01:02]}  Rxd3 {[%clk 0:01:10]} 33. Rxc6 {[%clk 0:01:02]}  Nd5 {[%clk 0:01:08]} 34. Ne4 {[%clk 0:00:59]}  Rd1+ {[%clk 0:01:04]} 35. Kg2 {[%clk 0:00:59]}  Ra1 {[%clk 0:01:05]} 36. Rd6 {[%clk 0:00:58]}  Nb4 {[%clk 0:00:56]} 37. g4 {[%clk 0:00:57]}  Ra2 {[%clk 0:00:53]} 38. h4 {[%clk 0:00:56]}  Nc2 {[%clk 0:00:50]} 39. Kg3 {[%clk 0:00:56]}  Nb4 {[%clk 0:00:48]} 40. Rd8+ {[%clk 0:00:51]}  Kh7 {[%clk 0:00:48]} 41. Rd7 {[%clk 0:00:52]}  Kg8 {[%clk 0:00:42]} 42. g5 {[%clk 0:00:50]}  h5 {[%clk 0:00:37]} 43. Nd6 {[%clk 0:00:43]}  Nd3 {[%clk 0:00:13]} 44. g6 {[%clk 0:00:43]}  fxg6 {[%clk 0:00:10]} 45. Rd8+ {[%clk 0:00:44]}  Kh7 {[%clk 0:00:07]} 46. Nf7 {[%clk 0:00:44]}  g5 {[%clk 0:00:06]} 47. Nxg5+ {[%clk 0:00:45]}  Kg6 {[%clk 0:00:07]} 48. Rxd3 {[%clk 0:00:40]}  Ra1 {[%clk 0:00:07]} 49. Rd6+ {[%clk 0:00:38]}  Kf5 {[%clk 0:00:07]} 50. Rd5+ {[%clk 0:00:33]} 1-0


[Site "https://www.chess.com"]

[Event "Titled Tuesday Blitz April 26 Late 2022"]
[White "Vasquez Schroeder, Rodrigo"]
[Black "Gnechko, Ruslan"]
[WhiteFideId "3400042"]
[BlackFideId "14135868"]
[WhiteElo "2561"]
[BlackElo "2289"]
[Result "1-0"]
[Round "01"]
[TimeControl "180+1"]
[Date "2022.04.26"]
[WhiteClock "0:00:38"]
[BlackClock "0:00:08"]

1. e4 {[%clk 0:02:59]}  c6 {[%clk 0:02:57]} 2. d4 {[%clk 0:02:56]}  d5 {[%clk 0:02:57]} 3. exd5 {[%clk 0:02:55]}  cxd5 {[%clk 0:02:58]} 4. Bd3 {[%clk 0:02:55]}  Nc6 {[%clk 0:02:58]} 5. c3 {[%clk 0:02:55]}  Nf6 {[%clk 0:02:58]} 6. h3 {[%clk 0:02:55]}  g6 {[%clk 0:02:58]} 7. Qc2 {[%clk 0:02:54]}  Bg7 {[%clk 0:02:56]} 8. Nf3 {[%clk 0:02:55]}  O-O {[%clk 0:02:57]} 9. O-O {[%clk 0:02:55]}  b6 {[%clk 0:02:56]} 10. Re1 {[%clk 0:02:54]}  a5 {[%clk 0:02:56]} 11. a4 {[%clk 0:02:51]}  Bb7 {[%clk 0:02:54]} 12. Na3 {[%clk 0:02:51]}  Rc8 {[%clk 0:02:55]} 13. Qe2 {[%clk 0:02:51]}  e6 {[%clk 0:02:54]} 14. Bg5 {[%clk 0:02:50]}  h6 {[%clk 0:02:53]} 15. Bh4 {[%clk 0:02:47]}  Ne7 {[%clk 0:02:42]} 16. Nb5 {[%clk 0:02:39]}  Nf5 {[%clk 0:02:36]} 17. Bxf6 {[%clk 0:02:36]}  Bxf6 {[%clk 0:02:33]} 18. Ne5 {[%clk 0:02:36]}  Kg7 {[%clk 0:02:21]} 19. Rad1 {[%clk 0:02:26]}  Bc6 {[%clk 0:02:18]} 20. Nxc6 {[%clk 0:02:22]}  Rxc6 {[%clk 0:02:17]} 21. Bxf5 {[%clk 0:02:22]}  gxf5 {[%clk 0:02:13]} 22. Rd3 {[%clk 0:02:21]}  Kh7 {[%clk 0:02:11]} 23. Qh5 {[%clk 0:02:19]}  Qe7 {[%clk 0:01:53]} 24. Rf3 {[%clk 0:02:14]}  Qd7 {[%clk 0:01:42]} 25. Rfe3 {[%clk 0:02:08]}  Rg8 {[%clk 0:01:37]} 26. Kh1 {[%clk 0:02:06]}  Rg5 {[%clk 0:01:36]} 27. Qf3 {[%clk 0:02:06]}  Rc8 {[%clk 0:01:34]} 28. R3e2 {[%clk 0:02:05]}  Rcg8 {[%clk 0:01:32]} 29. Rg1 {[%clk 0:02:05]}  Bd8 {[%clk 0:01:11]} 30. Ree1 {[%clk 0:02:01]}  Bc7 {[%clk 0:01:11]} 31. b3 {[%clk 0:01:59]}  Bb8 {[%clk 0:01:10]} 32. c4 {[%clk 0:01:56]}  dxc4 {[%clk 0:01:04]} 33. bxc4 {[%clk 0:01:57]}  Qe7 {[%clk 0:00:54]} 34. d5 {[%clk 0:01:50]}  e5 {[%clk 0:00:39]} 35. g3 {[%clk 0:01:34]}  e4 {[%clk 0:00:39]} 36. Qe2 {[%clk 0:01:31]}  Bd6 {[%clk 0:00:33]} 37. Nd4 {[%clk 0:01:28]}  Bc5 {[%clk 0:00:31]} 38. Nc6 {[%clk 0:01:28]}  Qf6 {[%clk 0:00:30]} 39. Rg2 {[%clk 0:01:24]}  e3 {[%clk 0:00:28]} 40. Qf3 {[%clk 0:01:09]}  exf2 {[%clk 0:00:27]} 41. Rf1 {[%clk 0:01:10]}  f4 {[%clk 0:00:23]} 42. g4 {[%clk 0:01:05]}  h5 {[%clk 0:00:24]} 43. Rh2 {[%clk 0:01:02]}  hxg4 {[%clk 0:00:22]} 44. hxg4+ {[%clk 0:01:02]}  Kg7 {[%clk 0:00:23]} 45. Qe4 {[%clk 0:00:59]}  Rh8 {[%clk 0:00:22]} 46. Rxh8 {[%clk 0:00:51]}  Kxh8 {[%clk 0:00:23]} 47. Qf3 {[%clk 0:00:49]}  Kg7 {[%clk 0:00:21]} 48. Kg2 {[%clk 0:00:47]}  Qb2 {[%clk 0:00:18]} 49. Qxf4 {[%clk 0:00:45]}  Qf6 {[%clk 0:00:15]} 50. Kf3 {[%clk 0:00:40]}  Qg6 {[%clk 0:00:13]} 51. Ne5 {[%clk 0:00:39]}  Qf6 {[%clk 0:00:11]} 52. Qxf6+ {[%clk 0:00:37]}  Kxf6 {[%clk 0:00:12]} 53. Nd7+ {[%clk 0:00:37]}  Ke7 {[%clk 0:00:12]} 54. Nxc5 {[%clk 0:00:38]}  bxc5 {[%clk 0:00:12]} 55. Rxf2 {[%clk 0:00:39]}  Re5 {[%clk 0:00:12]} 56. Rb2 {[%clk 0:00:38]}  Kd6 {[%clk 0:00:08]} 57. Rb6+ {[%clk 0:00:38]}  Kd7 {[%clk 0:00:09]} 58. Rc6 {[%clk 0:00:38]}  Re1 {[%clk 0:00:08]} 59. Rxc5 {[%clk 0:00:38]} 1-0


[Site "https://www.chess.com"]

[Event "Titled Tuesday Blitz April 26 Late 2022"]
[White "Vovk, Orest"]
[Black "Harish, Neeraj"]
[WhiteFideId "14113490"]
[BlackFideId "30958130"]
[WhiteElo "2203"]
[BlackElo "1574"]
[Result "1-0"]
[Round "01"]
[TimeControl "180+1"]
[Date "2022.04.26"]
[WhiteClock "0:01:48"]
[BlackClock "0:00:43"]

1. e4 {[%clk 0:02:59]}  c5 {[%clk 0:02:51]} 2. d3 {[%clk 0:02:49]}  g6 {[%clk 0:02:49]} 3. Nd2 {[%clk 0:02:50]}  Bg7 {[%clk 0:02:49]} 4. Ngf3 {[%clk 0:02:50]}  Nc6 {[%clk 0:02:42]} 5. Be2 {[%clk 0:02:51]}  e5 {[%clk 0:02:35]} 6. O-O {[%clk 0:02:51]}  Nge7 {[%clk 0:02:35]} 7. Nc4 {[%clk 0:02:44]}  d5 {[%clk 0:02:29]} 8. exd5 {[%clk 0:02:43]}  Nxd5 {[%clk 0:02:30]} 9. a4 {[%clk 0:02:40]}  O-O {[%clk 0:02:29]} 10. Bg5 {[%clk 0:02:32]}  f6 {[%clk 0:02:01]} 11. Bd2 {[%clk 0:02:31]}  f5 {[%clk 0:01:56]} 12. Bg5 {[%clk 0:02:22]}  Qc7 {[%clk 0:01:51]} 13. Qd2 {[%clk 0:02:19]}  Be6 {[%clk 0:01:42]} 14. Bh6 {[%clk 0:02:14]}  Bxh6 {[%clk 0:00:58]} 15. Qxh6 {[%clk 0:02:12]}  Nf4 {[%clk 0:00:58]} 16. Rfe1 {[%clk 0:02:07]}  Bxc4 {[%clk 0:00:58]} 17. dxc4 {[%clk 0:02:03]}  e4 {[%clk 0:00:57]} 18. Ng5 {[%clk 0:01:57]}  Nxe2+ {[%clk 0:00:47]} 19. Rxe2 {[%clk 0:01:55]}  Nd4 {[%clk 0:00:48]} 20. Rd2 {[%clk 0:01:53]}  Qg7 {[%clk 0:00:44]} 21. Qxg7+ {[%clk 0:01:51]}  Kxg7 {[%clk 0:00:44]} 22. c3 {[%clk 0:01:48]}  Nb3 {[%clk 0:00:44]} 23. Rd7+ {[%clk 0:01:48]}  Kf6 {[%clk 0:00:43]} 24. Nxh7+ {[%clk 0:01:48]}  Ke6 {[%clk 0:00:43]} 25. Nxf8+ {[%clk 0:01:48]}  Rxf8 {[%clk 0:00:43]} 26. Rad1 {[%clk 0:01:48]} 1-0


[Site "https://www.chess.com"]

[Event "Titled Tuesday Blitz April 26 Late 2022"]
[White "Vujic, Mihailo"]
[Black "Tari, Aryan"]
[WhiteFideId "918873"]
[BlackFideId "1510045"]
[WhiteElo "2256"]
[BlackElo "2567"]
[Result "0-1"]
[Round "01"]
[TimeControl "180+1"]
[Date "2022.04.26"]
[WhiteClock "0:00:05"]
[BlackClock "0:00:27"]

1. e4 {[%clk 0:02:57]}  e5 {[%clk 0:02:58]} 2. Bc4 {[%clk 0:02:55]}  Nf6 {[%clk 0:02:58]} 3. d4 {[%clk 0:02:55]}  exd4 {[%clk 0:02:42]} 4. Nf3 {[%clk 0:02:55]}  Nc6 {[%clk 0:02:38]} 5. O-O {[%clk 0:02:54]}  Nxe4 {[%clk 0:02:38]} 6. Re1 {[%clk 0:02:54]}  d5 {[%clk 0:02:38]} 7. Bxd5 {[%clk 0:02:55]}  Qxd5 {[%clk 0:02:39]} 8. Nc3 {[%clk 0:02:55]}  Qd8 {[%clk 0:02:40]} 9. Nxe4 {[%clk 0:02:54]}  Be7 {[%clk 0:02:40]} 10. Bg5 {[%clk 0:02:54]}  f6 {[%clk 0:02:23]} 11. Nxf6+ {[%clk 0:02:08]}  gxf6 {[%clk 0:02:21]} 12. Bxf6 {[%clk 0:02:08]}  O-O {[%clk 0:02:15]} 13. Bxe7 {[%clk 0:01:57]}  Nxe7 {[%clk 0:02:14]} 14. Nxd4 {[%clk 0:01:56]}  Ng6 {[%clk 0:02:10]} 15. c3 {[%clk 0:01:54]}  Qf6 {[%clk 0:02:04]} 16. f3 {[%clk 0:01:45]}  Kh8 {[%clk 0:02:01]} 17. Qd2 {[%clk 0:01:40]}  Bd7 {[%clk 0:01:57]} 18. Rad1 {[%clk 0:01:33]}  Rad8 {[%clk 0:01:57]} 19. Qh6 {[%clk 0:01:32]}  Rde8 {[%clk 0:01:41]} 20. Ne2 {[%clk 0:01:12]}  Bc6 {[%clk 0:01:22]} 21. Ng3 {[%clk 0:01:12]}  Qh4 {[%clk 0:01:15]} 22. Qd2 {[%clk 0:00:59]}  Qf4 {[%clk 0:01:13]} 23. Qd3 {[%clk 0:00:53]}  Ne5 {[%clk 0:01:11]} 24. Qf1 {[%clk 0:00:20]}  Bxf3 {[%clk 0:00:56]} 25. Rxe5 {[%clk 0:00:18]}  Rxe5 {[%clk 0:00:49]} 26. gxf3 {[%clk 0:00:18]}  Re7 {[%clk 0:00:43]} 27. Rd4 {[%clk 0:00:16]}  Qxf3 {[%clk 0:00:40]} 28. Qxf3 {[%clk 0:00:15]}  Rxf3 {[%clk 0:00:41]} 29. Rd8+ {[%clk 0:00:15]}  Kg7 {[%clk 0:00:41]} 30. Kg2 {[%clk 0:00:15]}  Rff7 {[%clk 0:00:39]} 31. Nh5+ {[%clk 0:00:13]}  Kh6 {[%clk 0:00:39]} 32. Ng3 {[%clk 0:00:12]}  Rd7 {[%clk 0:00:39]} 33. Re8 {[%clk 0:00:11]}  Rd2+ {[%clk 0:00:38]} 34. Kh3 {[%clk 0:00:11]}  Rxb2 {[%clk 0:00:36]} 35. Re6+ {[%clk 0:00:12]}  Kg7 {[%clk 0:00:36]} 36. Nh5+ {[%clk 0:00:12]}  Kf8 {[%clk 0:00:37]} 37. Nf6 {[%clk 0:00:12]}  Rf2 {[%clk 0:00:34]} 38. Ne4 {[%clk 0:00:11]}  R2f3+ {[%clk 0:00:32]} 39. Kg4 {[%clk 0:00:11]}  Re3 {[%clk 0:00:28]} 40. h4 {[%clk 0:00:06]}  Re7 {[%clk 0:00:28]} 41. Rxe7 {[%clk 0:00:05]}  Kxe7 {[%clk 0:00:29]} 42. Kf4 {[%clk 0:00:04]}  Re2 {[%clk 0:00:27]} 43. a4 {[%clk 0:00:01]}  Ra2 {[%clk 0:00:27]} 44. Nc5 {[%clk 0:00:01]}  b6 {[%clk 0:00:28]} 45. Nb3 {[%clk 0:00:02]}  Rxa4+ {[%clk 0:00:28]} 46. Ke5 {[%clk 0:00:02]}  Ra3 {[%clk 0:00:27]} 47. Nd4 {[%clk 0:00:03]}  Rxc3 {[%clk 0:00:27]} 48. Nf5+ {[%clk 0:00:04]}  Kd7 {[%clk 0:00:27]} 49. h5 {[%clk 0:00:04]}  a5 {[%clk 0:00:28]} 50. Kf6 {[%clk 0:00:04]}  Rf3 {[%clk 0:00:27]} 51. Kg7 {[%clk 0:00:05]}  Rxf5 {[%clk 0:00:27]} 0-1


[Site "https://www.chess.com"]

[Event "Titled Tuesday Blitz April 26 Late 2022"]
[White "Yoo, Christopher Woojin"]
[Black "Ezat, Mohamed"]
[WhiteFideId "30909694"]
[BlackFideId "10600906"]
[WhiteElo "2105"]
[BlackElo "2386"]
[Result "1-0"]
[Round "01"]
[TimeControl "180+1"]
[Date "2022.04.26"]
[WhiteClock "0:00:13"]
[BlackClock "0:00:16"]

1. d4 {[%clk 0:03:00]}  Nf6 {[%clk 0:02:57]} 2. c4 {[%clk 0:03:01]}  g6 {[%clk 0:02:57]} 3. Nf3 {[%clk 0:03:00]}  Bg7 {[%clk 0:02:57]} 4. Nc3 {[%clk 0:03:00]}  O-O {[%clk 0:02:56]} 5. h4 {[%clk 0:03:00]}  c5 {[%clk 0:02:53]} 6. d5 {[%clk 0:02:57]}  d6 {[%clk 0:02:51]} 7. e4 {[%clk 0:02:57]}  e6 {[%clk 0:02:45]} 8. Be2 {[%clk 0:02:54]}  exd5 {[%clk 0:02:45]} 9. cxd5 {[%clk 0:02:54]}  b5 {[%clk 0:02:42]} 10. Nxb5 {[%clk 0:02:45]}  Nxe4 {[%clk 0:02:41]} 11. O-O {[%clk 0:02:45]}  a6 {[%clk 0:02:39]} 12. Na3 {[%clk 0:02:43]}  Bg4 {[%clk 0:02:36]} 13. Nc4 {[%clk 0:02:37]}  Nd7 {[%clk 0:02:34]} 14. Ng5 {[%clk 0:02:29]}  Bxe2 {[%clk 0:02:31]} 15. Qxe2 {[%clk 0:02:30]}  Nxg5 {[%clk 0:02:29]} 16. Bxg5 {[%clk 0:02:31]}  Qc7 {[%clk 0:02:27]} 17. Qe7 {[%clk 0:02:24]}  h6 {[%clk 0:02:15]} 18. Bf4 {[%clk 0:02:17]}  Rfe8 {[%clk 0:02:14]} 19. Qxd6 {[%clk 0:02:14]}  Qxd6 {[%clk 0:02:11]} 20. Bxd6 {[%clk 0:02:09]}  Re4 {[%clk 0:02:07]} 21. Rac1 {[%clk 0:02:04]}  Rxh4 {[%clk 0:02:06]} 22. Rfe1 {[%clk 0:01:50]}  Rd4 {[%clk 0:02:03]} 23. Re7 {[%clk 0:01:45]}  Nf6 {[%clk 0:02:02]} 24. Nb6 {[%clk 0:01:33]}  Rf8 {[%clk 0:01:53]} 25. Re2 {[%clk 0:00:59]}  Nxd5 {[%clk 0:01:48]} 26. Bxf8 {[%clk 0:00:46]}  Bxf8 {[%clk 0:01:41]} 27. Nc4 {[%clk 0:00:41]}  Nb4 {[%clk 0:01:38]} 28. a3 {[%clk 0:00:36]}  Nd3 {[%clk 0:01:38]} 29. Rcc2 {[%clk 0:00:36]}  Nf4 {[%clk 0:01:32]} 30. Red2 {[%clk 0:00:35]}  Re4 {[%clk 0:01:31]} 31. Ne3 {[%clk 0:00:33]}  Ne6 {[%clk 0:01:28]} 32. Rc4 {[%clk 0:00:30]}  Nd4 {[%clk 0:01:26]} 33. b4 {[%clk 0:00:30]}  Nb3 {[%clk 0:00:57]} 34. Rd3 {[%clk 0:00:22]}  Rxc4 {[%clk 0:00:55]} 35. Nxc4 {[%clk 0:00:23]}  Nd4 {[%clk 0:00:55]} 36. Kf1 {[%clk 0:00:20]}  Nb5 {[%clk 0:00:52]} 37. a4 {[%clk 0:00:17]}  Nd4 {[%clk 0:00:50]} 38. Ne5 {[%clk 0:00:16]}  Bg7 {[%clk 0:00:40]} 39. f4 {[%clk 0:00:11]}  Ne6 {[%clk 0:00:32]} 40. b5 {[%clk 0:00:11]}  axb5 {[%clk 0:00:30]} 41. axb5 {[%clk 0:00:12]}  Nxf4 {[%clk 0:00:29]} 42. Rd8+ {[%clk 0:00:12]}  Kh7 {[%clk 0:00:28]} 43. Nc4 {[%clk 0:00:13]}  Ne6 {[%clk 0:00:27]} 44. Rd7 {[%clk 0:00:13]}  Kg8 {[%clk 0:00:22]} 45. b6 {[%clk 0:00:13]}  Nf8 {[%clk 0:00:20]} 46. Rd8 {[%clk 0:00:10]}  Bf6 {[%clk 0:00:17]} 47. Rxf8+ {[%clk 0:00:10]}  Kxf8 {[%clk 0:00:17]} 48. b7 {[%clk 0:00:11]}  Kg7 {[%clk 0:00:17]} 49. b8=Q {[%clk 0:00:11]}  Bd4 {[%clk 0:00:18]} 50. Qc7 {[%clk 0:00:11]}  h5 {[%clk 0:00:17]} 51. Nd6 {[%clk 0:00:12]}  Kf6 {[%clk 0:00:16]} 52. Qxf7+ {[%clk 0:00:12]}  Ke5 {[%clk 0:00:16]} 53. Nc4+ {[%clk 0:00:12]}  Ke4 {[%clk 0:00:16]} 54. Qf3# {[%clk 0:00:13]} 1-0


[Site "https://www.chess.com"]

[Event "Titled Tuesday Blitz April 26 Late 2022"]
[White "Yurovskykh, Oleksandr"]
[Black "volunteers1998"]
[WhiteFideId "14134020"]
[WhiteElo "2292"]
[BlackElo "2290"]
[Result "1-0"]
[Round "01"]
[TimeControl "180+1"]
[Date "2022.04.26"]
[WhiteClock "0:00:14"]
[BlackClock "0:00:03"]

1. d4 {[%clk 0:02:49]}  f5 {[%clk 0:02:57]} 2. Nc3 {[%clk 0:02:49]}  Nf6 {[%clk 0:02:56]} 3. Bg5 {[%clk 0:02:47]}  d5 {[%clk 0:02:56]} 4. e3 {[%clk 0:02:46]}  e6 {[%clk 0:02:53]} 5. Nf3 {[%clk 0:02:45]}  Be7 {[%clk 0:02:50]} 6. Bd3 {[%clk 0:02:44]}  O-O {[%clk 0:02:50]} 7. O-O {[%clk 0:02:36]}  c6 {[%clk 0:02:43]} 8. Ne2 {[%clk 0:02:35]}  Nbd7 {[%clk 0:02:40]} 9. c4 {[%clk 0:02:31]}  h6 {[%clk 0:02:37]} 10. Bf4 {[%clk 0:02:28]}  g5 {[%clk 0:02:36]} 11. Bg3 {[%clk 0:02:05]}  Ne4 {[%clk 0:02:36]} 12. Qc2 {[%clk 0:01:56]}  Ndf6 {[%clk 0:02:31]} 13. Ne5 {[%clk 0:01:51]}  Nxg3 {[%clk 0:02:28]} 14. Nxg3 {[%clk 0:01:49]}  Ne4 {[%clk 0:02:24]} 15. Ng6 {[%clk 0:01:44]}  Rf7 {[%clk 0:02:19]} 16. Nxe7+ {[%clk 0:01:43]}  Qxe7 {[%clk 0:02:16]} 17. Ne2 {[%clk 0:01:37]}  Bd7 {[%clk 0:02:09]} 18. f3 {[%clk 0:01:28]}  Nf6 {[%clk 0:02:06]} 19. e4 {[%clk 0:01:29]}  fxe4 {[%clk 0:02:02]} 20. fxe4 {[%clk 0:01:29]}  Ng4 {[%clk 0:01:56]} 21. Qd2 {[%clk 0:01:19]}  Raf8 {[%clk 0:01:53]} 22. h3 {[%clk 0:01:13]}  Rxf1+ {[%clk 0:01:51]} 23. Rxf1 {[%clk 0:01:12]}  Rxf1+ {[%clk 0:01:48]} 24. Kxf1 {[%clk 0:01:13]}  Nf6 {[%clk 0:01:41]} 25. e5 {[%clk 0:01:11]}  Ne8 {[%clk 0:01:35]} 26. c5 {[%clk 0:01:07]}  Qf7+ {[%clk 0:01:30]} 27. Ke1 {[%clk 0:01:04]}  Ng7 {[%clk 0:01:29]} 28. Qe3 {[%clk 0:00:58]}  Nf5 {[%clk 0:01:26]} 29. Qf2 {[%clk 0:00:58]}  Nh4 {[%clk 0:01:12]} 30. Qxf7+ {[%clk 0:00:51]}  Kxf7 {[%clk 0:01:12]} 31. Kf2 {[%clk 0:00:48]}  Nf5 {[%clk 0:01:09]} 32. g3 {[%clk 0:00:38]}  Ke7 {[%clk 0:01:06]} 33. Bxf5 {[%clk 0:00:25]}  exf5 {[%clk 0:01:05]} 34. h4 {[%clk 0:00:26]}  Be8 {[%clk 0:00:58]} 35. hxg5 {[%clk 0:00:23]}  hxg5 {[%clk 0:00:57]} 36. Ng1 {[%clk 0:00:24]}  Bh5 {[%clk 0:00:51]} 37. Nh3 {[%clk 0:00:24]}  f4 {[%clk 0:00:49]} 38. Nxg5 {[%clk 0:00:21]}  fxg3+ {[%clk 0:00:48]} 39. Kxg3 {[%clk 0:00:22]}  Bd1 {[%clk 0:00:45]} 40. Kf4 {[%clk 0:00:22]}  Bh5 {[%clk 0:00:41]} 41. a3 {[%clk 0:00:20]}  b6 {[%clk 0:00:38]} 42. b4 {[%clk 0:00:21]}  bxc5 {[%clk 0:00:36]} 43. bxc5 {[%clk 0:00:22]}  Bd1 {[%clk 0:00:33]} 44. Nh3 {[%clk 0:00:13]}  Ke6 {[%clk 0:00:31]} 45. Nf2 {[%clk 0:00:13]}  Bc2 {[%clk 0:00:29]} 46. Ng4 {[%clk 0:00:12]}  Bf5 {[%clk 0:00:24]} 47. Ne3 {[%clk 0:00:12]}  Bd3 {[%clk 0:00:22]} 48. Nd1 {[%clk 0:00:12]}  Bc2 {[%clk 0:00:21]} 49. Nc3 {[%clk 0:00:13]}  Bb3 {[%clk 0:00:18]} 50. Kg5 {[%clk 0:00:13]}  Bc2 {[%clk 0:00:16]} 51. Ne2 {[%clk 0:00:13]}  Be4 {[%clk 0:00:14]} 52. Nf4+ {[%clk 0:00:14]}  Kf7 {[%clk 0:00:12]} 53. Kh6 {[%clk 0:00:14]}  Bf5 {[%clk 0:00:11]} 54. Ng2 {[%clk 0:00:13]}  Bg4 {[%clk 0:00:11]} 55. Ne3 {[%clk 0:00:13]}  Bh3 {[%clk 0:00:11]} 56. Kg5 {[%clk 0:00:13]}  Be6 {[%clk 0:00:08]} 57. Nf5 {[%clk 0:00:13]}  Bd7 {[%clk 0:00:06]} 58. Nd6+ {[%clk 0:00:12]}  Ke6 {[%clk 0:00:06]} 59. Kg6 {[%clk 0:00:13]}  Ke7 {[%clk 0:00:04]} 60. Kg7 {[%clk 0:00:13]}  Bg4 {[%clk 0:00:04]} 61. a4 {[%clk 0:00:12]}  Bh3 {[%clk 0:00:04]} 62. a5 {[%clk 0:00:12]}  Bg4 {[%clk 0:00:04]} 63. Kg6 {[%clk 0:00:12]}  Bh3 {[%clk 0:00:04]} 64. Kg5 {[%clk 0:00:12]}  Bf1 {[%clk 0:00:04]} 65. Nf5+ {[%clk 0:00:12]}  Kf7 {[%clk 0:00:04]} 66. Ne3 {[%clk 0:00:11]}  Bd3 {[%clk 0:00:03]} 67. Kf4 {[%clk 0:00:11]}  Be4 {[%clk 0:00:04]} 68. Nd1 {[%clk 0:00:10]}  Bd3 {[%clk 0:00:04]} 69. Nc3 {[%clk 0:00:11]}  Bc4 {[%clk 0:00:04]} 70. Nb1 {[%clk 0:00:09]}  Bd3 {[%clk 0:00:04]} 71. Nd2 {[%clk 0:00:10]}  Bc2 {[%clk 0:00:04]} 72. Nf3 {[%clk 0:00:10]}  Be4 {[%clk 0:00:04]} 73. Ng5+ {[%clk 0:00:09]}  Ke7 {[%clk 0:00:03]} 74. Nxe4 {[%clk 0:00:09]}  dxe4 {[%clk 0:00:04]} 75. Kxe4 {[%clk 0:00:10]}  Ke6 {[%clk 0:00:04]} 76. d5+ {[%clk 0:00:10]}  cxd5+ {[%clk 0:00:04]} 77. Kd4 {[%clk 0:00:11]}  a6 {[%clk 0:00:03]} 78. c6 {[%clk 0:00:11]}  Ke7 {[%clk 0:00:02]} 79. Kxd5 {[%clk 0:00:12]}  Kd8 {[%clk 0:00:02]} 80. Kd6 {[%clk 0:00:12]}  Kc8 {[%clk 0:00:02]} 81. e6 {[%clk 0:00:13]}  Kd8 {[%clk 0:00:03]} 82. e7+ {[%clk 0:00:14]}  Ke8 {[%clk 0:00:03]} 83. c7 {[%clk 0:00:14]} 1-0


[Site "https://www.chess.com"]